bitfinex/quotes_BTCUSD_20251113
["timestamp","ask_amount","ask_price","bid_price","bid_amount"]
[1763059283784,0.0198,98630.0,98611.0,0.09816915]
[1763059284406,0.0198,98640.0,98626.0,0.09816915]
[1763059284617,0.01,98650.0,98623.0,0.20279224]
[1763059284817,0.00124921,98649.0,98630.0,0.53671516]
[1763059285163,0.00124921,98649.0,98610.0,0.3426]
[1763059285392,0.00124921,98649.0,98613.0,0.09816915]
[1763059285581,0.0198,98640.0,98613.0,0.09816915]
[1763059285790,0.0198,98630.0,98611.0,0.323]
[1763059285970,0.0198,98630.0,98614.0,0.09816915]
[1763059286174,0.00124921,98649.0,98614.0,0.09816915]
[1763059286664,0.0198,98640.0,98614.0,0.09816915]
[1763059286869,0.0198,98640.0,98620.0,0.53671516]
[1763059287073,0.0198,98640.0,98621.0,0.20279656]
[1763059287273,0.00124921,98649.0,98620.0,0.53671516]
[1763059287469,0.5,98640.0,98620.0,0.53671516]
[1763059287693,0.5198,98640.0,98620.0,0.53671516]
[1763059287898,0.5,98640.0,98620.0,0.53671516]
[1763059288189,0.5198,98640.0,98620.0,0.53671516]
[1763059288363,0.5,98640.0,98610.0,0.0196]
[1763059288564,0.5,98640.0,98620.0,0.53671516]
[1763059288742,0.5,98640.0,98615.0,0.09816915]
[1763059288743,0.0198,98630.0,98615.0,0.09816915]
[1763059289295,0.5,98640.0,98615.0,0.09816915]
[1763059289500,0.5198,98640.0,98620.0,0.53671516]
[1763059289703,0.5,98640.0,98630.0,0.53671516]
[1763059289923,0.5,98640.0,98629.0,0.04341874]
[1763059290144,0.5,98640.0,98638.0,0.2027597]
[1763059290346,0.5,98640.0,98639.0,0.04341874]
[1763059290720,0.46953189,98640.0,98639.0,0.36641874]
[1763059290923,0.43906378,98640.0,98639.0,0.36641874]
[1763059291100,0.43906367,98640.0,98639.0,0.36641874]
[1763059291303,0.40859556,98640.0,98639.0,0.36641874]
[1763059291634,0.34765934,98640.0,98639.0,0.36941874]
[1763059291789,0.31719123,98640.0,98639.0,0.29341874]
[1763059291988,0.28672312,98640.0,98639.0,0.29041874]
[1763059292196,0.40859501,98640.0,98639.0,0.29541874]
[1763059292401,0.00124921,98649.0,98639.0,0.29541874]
[1763059292607,0.0002,98700.0,98671.0,0.2026938]
[1763059292807,0.0003398,98700.0,98690.0,0.53671516]
[1763059293210,0.0003398,98700.0,98689.0,0.09816915]
[1763059293530,0.0003398,98700.0,98680.0,0.53671516]
[1763059293531,0.0003398,98700.0,98691.0,0.09816915]
[1763059293869,0.0003398,98700.0,98690.0,0.53671516]
[1763059294010,0.0003398,98700.0,98674.0,0.09816915]
[1763059294011,0.0003398,98700.0,98680.0,0.55623794]
[1763059294215,0.0201398,98700.0,98690.0,0.53671516]
[1763059294530,0.0003398,98700.0,98690.0,0.53671516]
[1763059294824,0.0003398,98700.0,98690.0,0.55431692]
[1763059295040,0.0003398,98700.0,98691.0,0.09816915]
[1763059295774,0.09816915,98735.0,98730.0,0.01]
[1763059295976,0.09816915,98735.0,98692.0,0.37212]
[1763059295977,0.02,98700.0,98692.0,0.37212]
[1763059296316,0.039999,98710.0,98692.0,0.37212]
[1763059296519,0.019999,98710.0,98701.0,0.323]
[1763059296963,0.02,98720.0,98702.0,0.0921]
[1763059297171,0.00046583,98720.0,98719.0,0.01346]
[1763059297364,0.11816915,98750.0,98719.0,0.01346]
[1763059297568,0.09830884,98750.0,98749.0,0.04865]
[1763059297733,0.00013969,98750.0,98749.0,0.04865]
[1763059298224,0.00013969,98750.0,98749.0,0.04765]
[1763059298749,0.02277072,98750.0,98724.0,0.323]
[1763059298963,0.02013969,98750.0,98749.0,0.04912]
[1763059299160,0.00013969,98750.0,98749.0,0.04912]
[1763059299615,0.02013969,98750.0,98749.0,0.04912]
[1763059299821,0.00013969,98750.0,98749.0,0.04912]
[1763059300237,0.00013969,98750.0,98749.0,0.05012]
[1763059300438,0.02013969,98750.0,98749.0,0.05012]
[1763059300666,0.02013969,98750.0,98749.0,0.04912]
[1763059300667,0.00013969,98750.0,98749.0,0.04912]
[1763059301037,0.00013969,98750.0,98749.0,0.05012]
[1763059301239,0.00013969,98750.0,98749.0,0.14122]
[1763059301643,0.00013969,98750.0,98749.0,0.04912]
[1763059303152,0.02013969,98750.0,98722.0,0.0921]
[1763059303383,2.36655843,98750.0,98749.0,0.001]
[1763059303602,0.02,98730.0,98720.0,0.0921]
[1763059304185,0.00198028,98725.0,98720.0,0.62881516]
[1763059304390,0.02,98730.0,98720.0,0.0921]
[1763059304604,0.00013969,98750.0,98720.0,0.0921]
[1763059304605,0.00213969,98750.0,98723.0,0.1071]
[1763059304808,0.00213969,98750.0,98731.0,0.323]
[1763059304809,0.02,98740.0,98731.0,0.323]
[1763059305034,0.00013969,98750.0,98720.0,0.323]
[1763059305373,0.02,98730.0,98729.0,0.0921]
[1763059305580,0.09816915,98744.0,98729.0,0.0921]
[1763059305820,0.02,98730.0,98729.0,0.0921]
[1763059306074,0.09816915,98744.0,98729.0,0.0921]
[1763059306293,0.01,98730.0,98720.0,0.53671516]
[1763059307303,0.09816915,98744.0,98729.0,0.06151]
[1763059307482,0.02,98730.0,98729.0,0.06151]
[1763059307686,0.09816915,98744.0,98720.0,0.53671516]
[1763059307954,0.09816915,98744.0,98730.0,0.53671516]
[1763059308104,0.02,98730.0,98721.0,0.0921]
[1763059308305,0.09816915,98744.0,98721.0,0.0921]
[1763059308516,0.09816915,98744.0,98729.0,0.05674]
[1763059308669,0.001,98730.0,98729.0,0.05674]
[1763059309078,0.02,98730.0,98729.0,0.14852]
[1763059309362,0.09816915,98744.0,98729.0,0.14852]
[1763059309497,0.02,98730.0,98729.0,0.14852]
[1763059309943,0.02,98730.0,98729.0,0.05774]
[1763059310093,0.02,98730.0,98729.0,0.001]
[1763059310300,0.02211046,98730.0,98729.0,0.001]
[1763059310545,0.00211046,98730.0,98729.0,0.001]
[1763059310962,0.00211046,98730.0,98729.0,0.324]
[1763059311520,0.00311046,98730.0,98729.0,0.324]
[1763059311724,0.00311046,98730.0,98729.0,0.36741874]
[1763059311926,0.00311046,98730.0,98729.0,0.04441874]
[1763059311927,0.00211046,98730.0,98729.0,0.04441874]
[1763059312167,0.00211046,98730.0,98729.0,0.04341874]
[1763059312325,0.00211046,98730.0,98729.0,0.36841874]
[1763059312927,0.00211046,98730.0,98729.0,0.325]
[1763059313133,0.00211046,98730.0,98729.0,0.32641874]
[1763059313760,0.50013969,98750.0,98729.0,0.32641874]
[1763059313761,0.50013969,98750.0,98730.0,0.00999999]
[1763059313964,0.50013969,98750.0,98749.0,0.06151]
[1763059314376,0.50013969,98750.0,98745.0,0.20254017]
[1763059314607,0.50013969,98750.0,98749.0,0.06151]
[1763059314814,0.50013969,98750.0,98749.0,0.10492874]
[1763059315044,0.50013969,98750.0,98749.0,0.04341874]
[1763059315245,0.13969134,98750.0,98749.0,0.51531074]
[1763059315464,0.02,98820.0,98781.0,0.04341874]
[1763059315665,0.02046574,98820.0,98810.0,0.53671516]
[1763059315872,0.0002,98840.0,98811.0,0.323]
[1763059316065,0.0002,98840.0,98810.0,0.01012043]
[1763059316066,0.00033968,98840.0,98830.0,0.53671516]
[1763059316362,0.00033968,98840.0,98816.0,0.323]
[1763059316363,0.0002,98850.0,98831.0,0.00347]
[1763059316716,0.0202,98850.0,98834.0,0.00347]
[1763059316862,0.0202,98850.0,98834.0,0.00260968]
[1763059317056,0.0002,98850.0,98834.0,0.00013968]
[1763059317247,0.0202,98850.0,98834.0,0.00013968]
[1763059317453,0.043024,98843.0,98834.0,0.00013968]
[1763059317932,0.02,98840.0,98834.0,0.00013968]
[1763059318168,0.042024,98843.0,98834.0,0.00013968]
[1763059318381,0.043024,98843.0,98834.0,0.00013968]
[1763059318545,0.043024,98843.0,98835.0,0.04341874]
[1763059318777,0.043024,98843.0,98840.0,0.06083897]
[1763059319154,0.043024,98843.0,98842.0,0.42116915]
[1763059319329,0.043024,98843.0,98842.0,0.323]
[1763059319945,0.042024,98843.0,98842.0,0.323]
[1763059320118,0.042024,98843.0,98842.0,0.04341874]
[1763059320319,0.042024,98843.0,98842.0,0.06658789]
[1763059320521,0.042024,98843.0,98840.0,0.01816184]
[1763059320522,0.042024,98843.0,98840.0,0.001]
[1763059320976,2.36641874,98841.0,98840.0,0.001]
[1763059321179,2.38473035,98841.0,98840.0,0.001]
[1763059321384,2.38473035,98841.0,98810.0,0.0214]
[1763059321385,0.323,98837.0,98810.0,0.0214]
[1763059321596,0.04341874,98819.0,98810.0,0.0214]
[1763059321769,0.09340874,98819.0,98780.0,0.53671516]
[1763059321952,0.02,98790.0,98780.0,0.53671516]
[1763059322159,0.02,98790.0,98777.0,0.00347]
[1763059322365,0.323,98818.0,98777.0,0.00347]
[1763059322569,0.02,98780.0,98764.0,0.00361]
[1763059322799,0.01,98810.0,98771.0,0.323]
[1763059323074,0.0001394,98810.0,98790.0,0.53671516]
[1763059323464,0.0201394,98810.0,98790.0,0.53671516]
[1763059323666,0.0201394,98810.0,98800.0,0.53671516]
[1763059323667,0.0001394,98810.0,98800.0,0.53671516]
[1763059323872,0.0001394,98810.0,98808.0,0.2024123]
[1763059324079,0.0001394,98810.0,98801.0,0.52542505]
[1763059324080,0.09816915,98827.0,98818.0,0.323]
[1763059324285,0.0202,98850.0,98820.0,0.323]
[1763059324486,0.0202,98850.0,98810.0,0.23933091]
[1763059324487,0.09769915,98826.0,98810.0,0.02012042]
[1763059324688,0.09769915,98826.0,98825.0,0.20237794]
[1763059324890,0.04216353,98843.0,98820.0,0.53671516]
[1763059325099,0.04216353,98843.0,98839.0,0.20234904]
[1763059325275,0.04216353,98843.0,98831.0,0.20236491]
[1763059325509,0.04216353,98843.0,98820.0,0.56538718]
[1763059325724,0.04216353,98843.0,98842.0,0.20234313]
[1763059325927,0.04216353,98843.0,98837.0,0.09816915]
[1763059326139,0.04216353,98843.0,98842.0,0.20234313]
[1763059326548,0.04216353,98843.0,98842.0,0.52534313]
[1763059326549,0.00714347,98843.0,98842.0,0.52534313]
[1763059326755,0.0002,98890.0,98862.0,0.52530219]
[1763059326952,0.0002,98890.0,98862.0,0.323]
[1763059327363,0.0002,98890.0,98842.0,0.01124292]
[1763059327628,0.001,98843.0,98842.0,0.01724292]
[1763059327832,0.001,98843.0,98795.0,0.09816915]
[1763059328035,0.02,98830.0,98800.0,0.5571212]
[1763059328238,0.01,98840.0,98801.0,0.323]
[1763059328439,0.01,98840.0,98810.0,0.09816915]
[1763059328682,0.01,98840.0,98814.0,0.323]
[1763059328882,0.01,98840.0,98811.0,0.323]
[1763059329101,0.01587424,98847.0,98826.0,0.323]
[1763059329319,0.001,98843.0,98826.0,0.323]
[1763059329544,0.001,98843.0,98825.0,0.09816915]
[1763059329767,0.01,98860.0,98834.0,0.323]
[1763059329980,0.01,98860.0,98825.0,0.09816915]
[1763059330198,0.01,98860.0,98830.0,0.01011838]
[1763059330409,0.02,98870.0,98851.0,0.323]
[1763059330867,0.00317349,98852.0,98830.0,0.54712121]
[1763059331106,0.001,98860.0,98817.0,0.20239254]
[1763059331324,0.00262779,98831.0,98825.0,0.00013953]
[1763059331544,0.04341874,98846.0,98826.0,0.001]
[1763059331767,0.04341874,98844.0,98825.0,0.00013953]
[1763059331988,0.04341874,98829.0,98825.0,0.00013953]
[1763059332194,0.04341874,98844.0,98825.0,0.00013953]
[1763059332402,0.01,98830.0,98825.0,0.00013953]
[1763059332608,0.02,98830.0,98825.0,0.00013953]
[1763059332987,0.02,98840.0,98825.0,0.00013953]
[1763059333631,0.001,98830.0,98825.0,0.00013953]
[1763059334284,0.04341874,98846.0,98825.0,0.00013953]
[1763059334487,0.04341874,98829.0,98825.0,0.00013953]
[1763059334690,0.04341874,98835.0,98825.0,0.00013953]
[1763059335161,0.02,98800.0,98770.0,0.01649183]
[1763059335421,0.02,98800.0,98778.0,0.09816915]
[1763059335644,0.01,98810.0,98778.0,0.09816915]
[1763059335870,0.09916915,98829.0,98780.0,0.0101235]
[1763059336099,0.001,98830.0,98795.0,0.52543939]
[1763059336361,0.021,98830.0,98803.0,0.323]
[1763059336594,0.09816915,98829.0,98791.0,0.323]
[1763059336812,0.01,98810.0,98770.0,0.02601135]
[1763059337033,0.001,98810.0,98779.0,0.09816915]
[1763059337259,0.021,98810.0,98779.0,0.09816915]
[1763059337494,0.02,98810.0,98779.0,0.09816915]
[1763059337714,0.02,98820.0,98779.0,0.00046574]
[1763059337936,0.04341874,98828.0,98785.0,0.323]
[1763059338158,0.02,98810.0,98785.0,0.323]
[1763059338381,0.09816915,98829.0,98795.0,0.323]
[1763059338604,0.09816915,98829.0,98780.0,0.60115704]
[1763059338605,0.02,98820.0,98790.0,0.01012248]
[1763059338833,0.2,98870.0,98796.0,0.09816915]
[1763059339051,0.02,98820.0,98795.0,0.09816915]
[1763059339279,0.001,98810.0,98795.0,0.09816915]
[1763059339735,0.02,98820.0,98796.0,0.09816915]
[1763059339953,0.02,98810.0,98781.0,0.323]
[1763059340196,0.04341874,98830.0,98783.0,0.323]
[1763059340415,0.02,98810.0,98781.0,0.323]
[1763059340645,0.02,98810.0,98783.0,0.323]
[1763059340869,0.02,98810.0,98785.0,0.323]
[1763059341105,0.04341874,98819.0,98780.0,0.09816915]
[1763059341362,0.04341874,98819.0,98758.0,0.05397257]
[1763059341363,0.04341874,98799.0,98758.0,0.05397257]
[1763059341620,0.02,98780.0,98744.0,0.05397257]
[1763059341836,0.04341874,98804.0,98781.0,0.001]
[1763059342036,0.04341874,98799.0,98781.0,0.001]
[1763059342249,0.04341874,98789.0,98740.0,0.05397257]
[1763059342451,0.04341874,98787.0,98781.0,0.001]
[1763059342656,0.14158789,98782.0,98781.0,0.0015]
[1763059342869,0.48298742,98782.0,98781.0,0.0005]
[1763059343088,0.09816915,98757.0,98694.0,0.19800297]
[1763059343311,0.04341874,98739.0,98694.0,0.00046583]
[1763059343513,0.04341874,98737.0,98694.0,0.00046583]
[1763059343716,0.02,98710.0,98694.0,0.00046583]
[1763059344181,0.02,98700.0,98694.0,0.00046583]
[1763059344389,0.09816915,98705.0,98694.0,0.00046583]
[1763059345033,0.04341874,98699.0,98694.0,0.00046583]
[1763059345253,0.03841874,98699.0,98694.0,0.00146583]
[1763059345459,0.04504,98695.0,98694.0,0.00046583]
[1763059345877,0.0445,98695.0,98694.0,0.00146583]
[1763059346297,0.323,98699.0,98694.0,0.00146583]
[1763059346530,0.02,98700.0,98694.0,0.00146583]
[1763059346921,0.2,98700.0,98694.0,0.00146583]
[1763059347062,0.04341874,98698.0,98694.0,0.00146583]
[1763059347429,0.04341874,98696.0,98694.0,0.00146583]
[1763059347556,2.36641874,98695.0,98694.0,0.00046583]
[1763059347958,0.36641874,98695.0,98694.0,0.00046583]
[1763059348601,2.36641874,98695.0,98694.0,0.00046583]
[1763059349166,2.36741874,98695.0,98694.0,0.00046583]
[1763059350241,0.02,98660.0,98639.0,0.20275752]
[1763059350434,0.02,98660.0,98639.0,0.20289692]
[1763059350655,0.02,98660.0,98640.0,0.20275544]
[1763059350835,0.02,98660.0,98639.0,0.0001394]
[1763059351259,0.02,98650.0,98639.0,0.0001394]
[1763059351377,0.52,98650.0,98639.0,0.0001394]
[1763059351628,0.01995196,98640.0,98639.0,0.0001394]
[1763059351835,0.5,98650.0,98639.0,0.0001394]
[1763059352038,0.52,98650.0,98639.0,0.0001394]
[1763059352238,0.30597637,98650.0,98639.0,0.0001394]
[1763059352650,0.49999937,98650.0,98639.0,0.0001394]
[1763059352855,0.49999937,98650.0,98639.0,0.20289869]
[1763059353083,0.49999937,98650.0,98639.0,0.0001394]
[1763059353283,0.51995133,98650.0,98639.0,0.0041394]
[1763059353705,0.49999937,98650.0,98639.0,0.0001394]
[1763059353910,0.51995133,98650.0,98639.0,0.0021394]
[1763059354131,0.51999937,98650.0,98639.0,0.0021394]
[1763059354371,0.51999937,98650.0,98639.0,0.0001394]
[1763059354571,0.01995196,98640.0,98639.0,0.0031394]
[1763059354784,0.01995196,98640.0,98639.0,0.0001394]
[1763059354938,0.09816915,98649.0,98639.0,0.0001394]
[1763059355140,0.04341874,98648.0,98639.0,0.0021394]
[1763059355348,0.05341874,98640.0,98639.0,0.0021394]
[1763059355936,0.05315874,98640.0,98639.0,0.0021394]
[1763059356125,0.0096388,98640.0,98639.0,0.0021394]
[1763059356350,0.04341874,98649.0,98639.0,0.00349533]
[1763059356535,0.0196388,98640.0,98639.0,0.0001394]
[1763059356742,0.04341874,98647.0,98639.0,0.0031394]
[1763059356944,0.14158789,98640.0,98639.0,0.0001394]
[1763059357352,0.01990392,98600.0,98580.0,0.01014404]
[1763059357549,0.01990392,98610.0,98582.0,0.20287518]
[1763059357754,0.01990392,98610.0,98586.0,0.2028675]
[1763059357960,0.01590967,98630.0,98580.0,0.00046629]
[1763059358162,0.01990392,98600.0,98580.0,0.00046629]
[1763059358564,0.01990392,98590.0,98580.0,0.00046629]
[1763059359744,0.01990392,98610.0,98590.0,0.01014301]
[1763059359976,0.01990392,98610.0,98587.0,0.323]
[1763059360186,0.01990392,98610.0,98581.0,0.42116915]
[1763059360414,0.5,98590.0,98589.0,0.323]
[1763059361507,0.5,98590.0,98581.0,0.323]
[1763059362431,0.5,98590.0,98580.0,0.00046629]
[1763059362662,0.5,98590.0,98581.0,0.003]
[1763059362873,0.49989469,98590.0,98589.0,0.00191953]
[1763059363318,0.49999969,98590.0,98589.0,0.00191953]
[1763059364267,0.49999969,98590.0,98589.0,0.004]
[1763059364899,0.49999969,98590.0,98589.0,0.10216915]
[1763059365103,0.46951526,98590.0,98589.0,0.10216915]
[1763059365465,0.49999926,98590.0,98589.0,0.10216915]
[1763059365645,0.49967672,98590.0,98589.0,0.10216915]
[1763059366003,0.49999972,98590.0,98589.0,0.10216915]
[1763059366224,0.49999972,98590.0,98589.0,0.09816915]
[1763059366380,0.50099972,98590.0,98589.0,0.42116915]
[1763059366880,0.47008772,98590.0,98589.0,0.42116915]
[1763059367272,0.001,98590.0,98589.0,0.42116915]
[1763059367475,0.00088844,98590.0,98589.0,0.42116915]
[1763059368660,0.09816915,98648.0,98600.0,0.01014198]
[1763059368868,0.09816915,98648.0,98617.0,0.323]
[1763059369073,0.09816915,98648.0,98609.0,0.323]
[1763059369278,0.01,98640.0,98620.0,0.6736759]
[1763059369473,0.04341874,98647.0,98599.0,0.07538272]
[1763059369721,0.04341874,98647.0,98611.0,0.323]
[1763059369925,0.01,98630.0,98611.0,0.323]
[1763059370125,0.01,98630.0,98611.0,0.32313969]
[1763059370298,0.01990392,98630.0,98611.0,0.32313969]
[1763059370666,0.04341874,98647.0,98611.0,0.32313969]
[1763059370667,0.09816915,98629.0,98611.0,0.00013969]
[1763059370941,0.01990392,98620.0,98611.0,0.00013969]
[1763059371140,0.09816915,98629.0,98611.0,0.00013969]
[1763059371392,0.01990392,98620.0,98611.0,0.00013969]
[1763059371596,0.01990392,98620.0,98600.0,0.65081559]
[1763059371711,0.01990392,98620.0,98610.0,0.6736759]
[1763059371946,0.09816915,98629.0,98601.0,0.323]
[1763059372151,0.09816915,98629.0,98611.0,0.002]
[1763059372353,0.01990392,98630.0,98619.0,0.6736759]
[1763059372565,0.01990392,98640.0,98619.0,0.6736759]
[1763059372971,0.01990392,98640.0,98630.0,0.6736759]
[1763059373186,0.6736759,98690.0,98630.0,0.6736759]
[1763059373441,0.6736759,98690.0,98620.0,0.09816915]
[1763059373442,0.01990392,98660.0,98640.0,0.6736759]
[1763059373642,0.0184144,98659.0,98630.0,0.6736759]
[1763059373846,0.6736759,98680.0,98621.0,0.323]
[1763059373847,0.0184144,98658.0,98621.0,0.323]
[1763059374049,0.0184144,98657.0,98621.0,0.323]
[1763059374312,0.01990392,98640.0,98621.0,0.3231398]
[1763059374499,0.01990392,98640.0,98630.0,0.6736759]
[1763059374839,0.00122426,98648.0,98630.0,0.6736759]
[1763059375040,0.00122426,98648.0,98638.0,0.6736759]
[1763059375443,0.00122426,98648.0,98621.0,0.0001398]
[1763059375657,0.01990392,98630.0,98621.0,0.0001398]
[1763059375863,0.01990392,98640.0,98621.0,0.0001398]
[1763059376349,0.01990392,98630.0,98621.0,0.0001398]
[1763059376548,0.04341874,98646.0,98621.0,0.0001398]
[1763059376756,0.01990392,98630.0,98621.0,0.0001398]
[1763059377688,0.323,98646.0,98621.0,0.0001398]
[1763059377689,0.11662525,98629.0,98621.0,0.0001398]
[1763059377873,0.0184561,98628.0,98621.0,0.0001398]
[1763059378076,0.09816915,98629.0,98621.0,0.0001398]
[1763059378291,0.03024104,98628.0,98621.0,0.0001398]
[1763059378502,0.01846024,98627.0,98621.0,0.0021398]
[1763059378697,0.09816915,98629.0,98621.0,0.0021398]
[1763059378698,0.01846024,98626.0,98621.0,0.0001398]
[1763059379031,0.01990392,98610.0,98590.0,0.6736759]
[1763059379234,0.323,98628.0,98590.0,0.00046629]
[1763059379554,0.01990392,98600.0,98590.0,0.00046629]
[1763059379712,0.01990392,98610.0,98590.0,0.67414219]
[1763059380623,0.01990392,98620.0,98590.0,0.00046629]
[1763059380825,0.01990392,98610.0,98590.0,0.00046629]
[1763059381036,0.001,98628.0,98600.0,0.6736759]
[1763059381230,0.01847482,98627.0,98618.0,0.6736759]
[1763059381462,0.8736759,98670.0,98618.0,0.6736759]
[1763059381463,0.01,98640.0,98619.0,0.20280067]
[1763059381656,0.00122426,98648.0,98630.0,0.6736759]
[1763059381905,0.00122426,98648.0,98638.0,0.6736759]
[1763059382288,0.00122426,98648.0,98619.0,0.323]
[1763059382513,0.00122426,98648.0,98638.0,0.6736759]
[1763059382701,0.00122426,98648.0,98621.0,0.07200108]
[1763059382956,0.00122426,98648.0,98638.0,0.67381578]
[1763059383167,0.00122426,98648.0,98638.0,0.67581578]
[1763059383373,0.00122426,98648.0,98638.0,0.67381578]
[1763059383819,0.01990392,98640.0,98638.0,0.00013988]
[1763059384017,0.00122426,98648.0,98638.0,0.00013988]
[1763059384461,0.00122426,98648.0,98638.0,0.67381578]
[1763059384671,0.00122426,98648.0,98638.0,0.00113988]
[1763059384672,0.01990392,98640.0,98638.0,0.00113988]
[1763059384993,0.00122426,98648.0,98638.0,0.00013988]
[1763059385215,0.323,98646.0,98638.0,0.00013988]
[1763059385437,0.0196388,98640.0,98638.0,0.00113988]
[1763059385642,0.01848409,98639.0,98638.0,0.00013988]
[1763059386083,0.01848409,98639.0,98606.0,0.002]
[1763059386297,0.01990392,98630.0,98620.0,0.6736759]
[1763059386501,0.01990392,98630.0,98611.0,0.323]
[1763059386948,0.00013926,98639.0,98620.0,0.6736759]
[1763059387125,0.00013926,98639.0,98611.0,0.323]
[1763059387126,0.01848386,98638.0,98611.0,0.323]
[1763059387329,0.01848386,98637.0,98612.0,0.09816915]
[1763059387539,0.00013926,98639.0,98620.0,0.6736759]
[1763059388170,0.01848356,98638.0,98611.0,0.323]
[1763059388389,0.04,98626.0,98611.0,0.323]
[1763059388648,0.04,98626.0,98612.0,0.001]
[1763059388859,0.04,98626.0,98610.0,0.6736759]
[1763059389740,0.04,98626.0,98611.0,0.42116915]
[1763059389953,0.04,98626.0,98618.0,0.323]
[1763059391044,0.04,98626.0,98613.0,0.39500108]
[1763059391443,0.04,98626.0,98618.0,0.002]
[1763059391654,0.04,98626.0,98606.0,0.07400108]
[1763059391851,0.01990392,98620.0,98612.0,0.0189731]
[1763059391971,0.00771052,98620.0,98618.0,0.002]
[1763059392176,0.04,98626.0,98619.0,0.0189731]
[1763059392393,0.04,98626.0,98620.0,0.0189731]
[1763059392624,0.04,98626.0,98610.0,0.6736759]
[1763059392625,0.04,98626.0,98621.0,0.0189731]
[1763059392851,0.04,98626.0,98622.0,0.0189731]
[1763059393059,0.04,98626.0,98623.0,0.0189731]
[1763059393261,0.04,98626.0,98611.0,0.09816915]
[1763059393474,0.04,98626.0,98618.0,0.20280087]
[1763059393684,0.04,98626.0,98611.0,0.09816915]
[1763059393898,0.04,98626.0,98618.0,0.002]
[1763059394325,0.04,98626.0,98616.0,0.6736759]
[1763059394326,0.04,98626.0,98624.0,0.20278893]
[1763059394557,0.00952757,98626.0,98624.0,0.20278893]
[1763059394769,0.00013926,98639.0,98635.0,0.20276679]
[1763059394984,0.00013926,98639.0,98622.0,0.20279033]
[1763059394985,0.5,98733.0,98660.0,0.01013581]
[1763059395180,0.00871052,98710.0,98690.0,0.53520411]
[1763059395379,0.00112082,98691.0,98683.0,0.07480944]
[1763059395582,0.00871052,98700.0,98680.0,0.53520411]
[1763059395790,0.01848849,98699.0,98690.0,0.53520411]
[1763059395996,0.01604683,98717.0,98670.0,0.01679791]
[1763059395997,0.01848849,98698.0,98670.0,0.01679791]
[1763059396199,0.01604683,98717.0,98683.0,0.09816915]
[1763059396450,0.00871052,98700.0,98688.0,0.53520411]
[1763059396620,0.00871052,98700.0,98672.0,0.52569029]
[1763059396839,0.01846587,98699.0,98690.0,0.53520411]
[1763059397195,0.01604683,98717.0,98690.0,0.53520411]
[1763059397423,0.01604683,98717.0,98670.0,0.09226025]
[1763059397424,0.09816915,98712.0,98670.0,0.07551087]
[1763059397597,0.04341874,98708.0,98670.0,0.53520411]
[1763059397807,0.09816915,98697.0,98688.0,0.001]
[1763059398015,0.01845171,98696.0,98660.0,0.53520411]
[1763059398154,0.01845171,98695.0,98660.0,0.53520411]
[1763059398355,0.00871052,98670.0,98650.0,0.53520411]
[1763059398604,0.00871052,98670.0,98638.0,0.09816915]
[1763059398605,0.00871052,98670.0,98660.0,0.53520411]
[1763059399433,0.09816915,98697.0,98661.0,0.52571241]
[1763059399603,0.09816915,98697.0,98661.0,0.323]
[1763059399604,0.00013978,98670.0,98661.0,0.323]
[1763059400407,0.00013978,98670.0,98669.0,0.5256979]
[1763059400623,0.00013978,98670.0,98669.0,0.323]
[1763059400906,0.00013978,98670.0,98669.0,0.265]
[1763059401090,0.00013978,98670.0,98668.0,0.20269879]
[1763059402470,0.13347144,98728.0,98671.0,0.20269236]
[1763059402717,0.00871052,98710.0,98690.0,0.53520411]
[1763059402918,0.00871052,98710.0,98691.0,0.323]
[1763059403718,0.00871052,98720.0,98704.0,0.20262458]
[1763059403918,0.00046612,98728.0,98711.0,0.323]
[1763059404143,0.00046612,98728.0,98707.0,0.09816915]
[1763059404144,0.00046612,98728.0,98718.0,0.53520411]
[1763059404382,0.00046612,98728.0,98723.0,0.09816915]
[1763059404738,0.00046612,98728.0,98718.0,0.53520411]
[1763059404960,0.00046612,98728.0,98722.0,0.09816915]
[1763059405166,0.00046612,98728.0,98727.0,0.323]
[1763059405368,0.00046612,98728.0,98718.0,0.002]
[1763059405781,0.00046612,98728.0,98719.0,0.323]
[1763059405995,0.00046612,98728.0,98718.0,0.002]
[1763059406351,0.09816915,98727.0,98718.0,0.002]
[1763059406562,0.00871052,98710.0,98700.0,0.53520411]
[1763059406761,0.09816915,98727.0,98701.0,0.323]
[1763059406963,0.00046612,98728.0,98718.0,0.003]
[1763059407179,0.00046612,98728.0,98718.0,0.323]
[1763059408155,0.00046612,98728.0,98719.0,0.09816915]
[1763059408350,0.00046612,98728.0,98717.0,0.53520411]
[1763059408567,0.00046612,98728.0,98720.0,0.09816915]
[1763059410233,0.00046612,98728.0,98722.0,0.323]
[1763059410613,0.00046612,98728.0,98723.0,0.09816915]
[1763059411380,0.00046612,98728.0,98723.0,0.04341874]
[1763059411620,0.0196388,98760.0,98723.0,0.04341874]
[1763059411832,0.00537664,98740.0,98723.0,0.04341874]
[1763059412095,0.00537664,98740.0,98722.0,0.002]
[1763059412357,0.09816915,98739.0,98722.0,0.002]
[1763059412568,0.00195428,98723.0,98700.0,0.53520411]
[1763059412774,0.01834111,98738.0,98691.0,0.07543771]
[1763059412775,0.00537664,98720.0,98710.0,0.53520411]
[1763059413202,0.09816915,98739.0,98711.0,0.323]
[1763059413610,0.00537664,98730.0,98711.0,0.323]
[1763059414163,0.00537664,98730.0,98720.0,0.53520411]
[1763059414631,0.00013974,98739.0,98721.0,0.42116915]
[1763059414844,0.00013974,98739.0,98732.0,0.323]
[1763059415518,0.09816915,98793.0,98750.0,0.01012658]
[1763059415729,0.00537664,98780.0,98770.0,0.53520411]
[1763059415940,0.09830884,98793.0,98770.0,0.53520411]
[1763059415941,0.00013969,98793.0,98770.0,0.53520411]
[1763059416150,0.00013969,98793.0,98783.0,0.53520411]
[1763059416368,0.00013969,98793.0,98767.0,0.04341874]
[1763059416578,0.00013969,98793.0,98765.0,0.09816915]
[1763059416579,0.00013969,98793.0,98780.0,0.53520411]
[1763059416791,0.00013969,98793.0,98780.0,0.63337326]
[1763059417516,0.00013969,98793.0,98781.0,0.323]
[1763059418445,0.00013969,98793.0,98780.0,0.001]
[1763059418662,0.00537664,98790.0,98780.0,0.001]
[1763059418882,0.02501544,98790.0,98780.0,0.001]